fUSD/lending_fUSD_20250115
["ID","MTS","AMOUNT","RATE_DAILY","PERIOD"]
[348973629,1736907034460,-365.239839,0.00016745,2]
[348973630,1736907034469,-500.0,0.00016745,2]
[348973631,1736907034478,-410.266335,0.00016745,2]
[348973632,1736907034488,-500.0,0.00016745,2]
[348973633,1736907034498,-536.74802524,0.00016745,2]
[348973634,1736907034508,-510.20652433,0.00016745,2]
[348973635,1736907034517,-500.0,0.00016745,2]
[348973636,1736907034526,-500.0,0.00016745,2]
[348973637,1736907034535,-521.4941275,0.00016745,2]
[348973638,1736907034545,-581.4,0.00016745,2]
[348973639,1736907034555,-500.0,0.00016745,2]
[348973640,1736907034566,-500.0,0.00016745,2]
[348973641,1736907034573,-524.39408004,0.00016745,2]
[348973642,1736907034582,-314.1149781,0.00016745,2]
[348973643,1736907034592,-547.37717133,0.00016745,2]
[348973644,1736907034601,-500.0,0.00016745,2]
[348973645,1736907034611,-500.0,0.00016745,2]
[348973646,1736907034620,-519.97357485,0.00016745,2]
[348973647,1736907034629,-500.0,0.00016745,2]
[348973648,1736907034640,-500.0,0.00016745,2]
[348973649,1736907034651,-500.0,0.00016745,2]
[348973650,1736907034660,-500.0,0.00016745,2]
[348973651,1736907034669,-565.23,0.00016745,2]
[348973652,1736907034678,-500.0,0.00016745,2]
[348973653,1736907034688,-187.37383868,0.00016746,2]
[348973654,1736907034700,-501.42523267,0.00016799,2]
[348973655,1736907034711,-279.94573914,0.00016799,2]
[348973656,1736907034722,-500.0,0.00016799,2]
[348973657,1736907034731,-513.95200088,0.00016845,2]
[348973658,1736907034740,-404.94204205,0.00016845,2]
[348973659,1736907034749,-500.0,0.00016845,2]
[348973660,1736907034758,-517.3154198,0.00016845,2]
[348973661,1736907034767,-512.17044595,0.00016845,2]
[348973662,1736907034776,-519.07864277,0.00016845,2]
[348973663,1736907034786,-500.0,0.00016845,2]
[348973664,1736907034795,-456.35921694,0.00016845,2]
[348973665,1736907034805,-634.09607863,0.00016845,2]
[348973666,1736907034814,-517.88816868,0.00016845,2]
[348973667,1736907034823,-512.75225485,0.00016845,2]
[348973668,1736907034832,-514.03427653,0.00016845,2]
[348973669,1736907034841,-513.99429021,0.00016845,2]
[348973670,1736907034850,-513.61853897,0.00016845,2]
[348973671,1736907034860,-515.43927366,0.00016845,2]
[348973672,1736907034869,-514.96982518,0.00016845,2]
[348973673,1736907034878,-268.4,0.00016845,2]
[348973674,1736907034887,-500.0,0.00016845,2]
[348973675,1736907034896,-518.35406801,0.00016845,2]
[348973676,1736907034906,-521.23306598,0.00016845,2]
[348973677,1736907034915,-314.42067682,0.00016845,2]
[348973678,1736907034924,-500.0,0.00016845,2]
[348973679,1736907034933,-512.83460019,0.00016845,2]
[348973680,1736907034943,-513.78380723,0.00016845,2]
[348973681,1736907034951,-511.06237661,0.00016845,2]
[348973682,1736907034961,-500.0,0.00016845,2]
[348973683,1736907034970,-513.04830949,0.00016845,2]
[348973684,1736907034979,-515.72466003,0.00016845,2]
[348973685,1736907034987,-509.06437052,0.00016845,2]
[348973686,1736907034997,-515.37648068,0.00016845,2]
[348973687,1736907035006,-513.94779742,0.00016845,2]
[348973688,1736907035014,-393.16316698,0.00016845,2]
[348973689,1736907035024,-514.90541791,0.00016845,2]
[348973690,1736907035033,-519.04338907,0.00016845,2]
[348973691,1736907035042,-516.71621955,0.00016845,2]
[348973692,1736907035051,-504.20823161,0.00016845,2]
[348973693,1736907035060,-529.63528467,0.00016845,2]
[348973694,1736907035069,-506.53694966,0.00016845,2]
[348973695,1736907035079,-519.14956292,0.00016845,2]
[348973696,1736907035088,-519.30151682,0.00016845,2]
[348973697,1736907035097,-521.29095846,0.00016845,2]
[348973698,1736907035106,-385.45476673,0.00016845,2]
[348973699,1736907035115,-523.07253499,0.00016845,2]
[348973700,1736907035124,-520.78279334,0.00016845,2]
[348973701,1736907035133,-500.00343377,0.00016845,2]
[348973702,1736907035142,-505.85445901,0.00016845,2]
[348973703,1736907035151,-513.8789187,0.00016845,2]
[348973704,1736907035162,-514.19701096,0.00016845,2]
[348973705,1736907035170,-515.70188,0.00016845,2]
[348973706,1736907035179,-517.72969797,0.00016845,2]
[348973707,1736907035189,-515.58005506,0.00016845,2]
[348973708,1736907035200,-500.0,0.00016845,2]
[348973709,1736907035209,-521.24051369,0.00016845,2]
[348973710,1736907035218,-512.0366533,0.00016845,2]
[348973711,1736907035227,-532.01446726,0.00016845,2]
[348973712,1736907035236,-683.77,0.00016845,2]
[348973713,1736907035245,-527.26257168,0.00016845,2]
[348973714,1736907035253,-273.38703066,0.00016845,2]
[348973715,1736907035262,-503.52879387,0.00016845,2]
[348973716,1736907035271,-314.82071247,0.00016845,2]
[348973717,1736907035281,-492.10277059,0.00016845,2]
[348973718,1736907035290,-501.90334959,0.00016845,2]
[348973719,1736907035299,-336.53030257,0.00016845,2]
[348973720,1736907035308,-503.74397187,0.00016845,2]
[348973721,1736907035318,-523.54470834,0.00016845,2]
[348973722,1736907035327,-511.62231162,0.00016845,2]
[348973723,1736907035336,-532.31666944,0.00016845,2]
[348973724,1736907035346,-423.58499604,0.00016845,2]
[348973725,1736907035356,-511.73555133,0.00016845,2]
[348973726,1736907035365,-508.67223874,0.00016845,2]
[348973727,1736907035375,-499.00161605,0.00016845,2]
[348973728,1736907035383,-500.0,0.00016845,2]
[348973729,1736907035393,-514.73824443,0.00016845,2]
[348973730,1736907035403,-514.21233564,0.00016845,2]
[348973731,1736907035412,-512.11943835,0.00016845,2]
[348973732,1736907035421,-500.0,0.00016845,2]
[348973733,1736907035429,-514.56462854,0.00016845,2]
[348973734,1736907035437,-511.99007413,0.00016845,2]
[348973735,1736907035447,-518.83337332,0.00016845,2]
[348973736,1736907035456,-515.72789969,0.00016845,2]
[348973737,1736907035465,-509.17827153,0.00016845,2]
[348973738,1736907035474,-509.47253367,0.00016845,2]
[348973739,1736907035484,-500.0,0.00016845,2]
[348973740,1736907035493,-223.46322213,0.00016845,2]
[348973741,1736907035502,-500.0,0.00016845,2]
[348973742,1736907035511,-511.97608412,0.00016845,2]
[348973743,1736907035520,-511.20326675,0.00016845,2]
[348973744,1736907035529,-511.55073135,0.00016845,2]
[348973745,1736907035538,-513.04215747,0.00016845,2]
[348973746,1736907035548,-514.24745885,0.00016845,2]
[348973747,1736907035557,-528.61666044,0.00016845,2]
[348973748,1736907035566,-513.87972522,0.00016845,2]
[348973749,1736907035575,-510.48658295,0.00016845,2]
[348973750,1736907035584,-516.42304713,0.00016845,2]
[348973751,1736907035594,-485.0,0.00016845,2]
[348973752,1736907035602,-500.0,0.00016845,2]
[348973753,1736907035612,-500.0,0.00016845,2]
[348973754,1736907035621,-500.0,0.00016845,2]
[348973755,1736907035630,-500.0,0.00016845,2]
[348973756,1736907035640,-500.0,0.00016845,2]
[348973757,1736907035650,-500.0,0.00016845,2]
[348973758,1736907035660,-500.0,0.00016845,2]
[348973759,1736907035670,-506.1973268,0.00016845,2]
[348973760,1736907035680,-517.37649141,0.00016845,2]
[348973761,1736907035693,-513.19632816,0.00016845,2]
[348973762,1736907035702,-524.55120811,0.00016845,2]
[348973763,1736907035712,-662.59,0.00016845,2]
[348973764,1736907035724,-518.8980951,0.00016845,2]
[348973765,1736907035734,-511.09485852,0.00016845,2]
[348973766,1736907035744,-517.93343886,0.00016845,2]
[348973767,1736907035754,-509.36561732,0.00016845,2]
[348973768,1736907035764,-720.11,0.00016845,2]
[348973769,1736907035773,-500.0,0.00016845,2]
[348973770,1736907035783,-512.65662417,0.00016845,2]
[348973771,1736907035793,-496.93932112,0.00016845,2]
[348973772,1736907035802,-450.35322522,0.00016845,2]
[348973773,1736907035810,-500.0,0.00016845,2]
[348973774,1736907035819,-511.35885641,0.00016845,2]
[348973775,1736907035827,-511.71505599,0.00016845,2]
[348973776,1736907035836,-362.85363747,0.00016846,2]
[348973777,1736907035861,-137.14636253,0.00016846,2]
[348973778,1736907035870,-500.0,0.00016846,2]
[348973779,1736907035879,-630.87,0.00016846,2]
[348973780,1736907035888,-500.0,0.00016846,2]
[348973781,1736907035897,-261.06,0.00016846,2]
[348973782,1736907035906,-500.0,0.00016846,2]
[348973783,1736907035915,-875.72,0.00016853,2]
[348973784,1736907035924,-1543.74,0.00016853,2]
[348973785,1736907035933,-301.67,0.00016884,2]
[348973786,1736907035945,-203.76115504,0.000169,2]
[348973787,1736907035956,-500.0,0.00017019,2]
[348973788,1736907035965,-171.46296769,0.00017019,2]
[348973789,1736907035973,-500.0,0.00017019,2]
[348973790,1736907035981,-500.0,0.00017019,2]
[348973791,1736907035989,-500.0,0.00017019,2]
[348973792,1736907035998,-360.68,0.00017019,2]
[348973793,1736907036007,-500.0,0.00017019,2]
[348973794,1736907036016,-500.0,0.00017019,2]
[348973795,1736907036026,-500.0,0.00017019,2]
[348973796,1736907036035,-639.09011442,0.00017019,2]
[348973797,1736907036044,-500.0,0.00017019,2]
[348973798,1736907036053,-249.2,0.00017019,2]
[348973799,1736907036062,-500.0,0.00017019,2]
[348973800,1736907036071,-500.0,0.00017019,2]
[348973801,1736907036080,-203.76115492,0.00017079,2]
[348973802,1736907036089,-160.434,0.000171,2]
[348973803,1736907036097,-268.4,0.00017119,2]
[348973804,1736907036107,-683.77,0.00017119,2]
[348973805,1736907036115,-500.0,0.00017119,2]
[348973806,1736907036124,-500.0,0.00017119,2]
[348973807,1736907036133,-500.0,0.00017119,2]
[348973808,1736907036142,-500.0,0.00017119,2]
[348973809,1736907036151,-500.0,0.00017119,2]
[348973810,1736907036160,-500.0,0.00017119,2]
[348973811,1736907036169,-500.0,0.00017119,2]
[348973812,1736907036178,-500.0,0.00017119,2]
[348973813,1736907036187,-662.59,0.00017119,2]
[348973814,1736907036199,-720.11,0.00017119,2]
[348973815,1736907036208,-500.0,0.00017119,2]
[348973816,1736907036218,-500.0,0.0001712,2]
[348973817,1736907036227,-500.0,0.0001712,2]
[348973818,1736907036236,-630.87,0.0001712,2]
[348973819,1736907036244,-500.0,0.0001712,2]
[348973820,1736907036253,-500.0,0.0001712,2]
[348973821,1736907036262,-500.0,0.00017123,2]
[348973822,1736907036271,-210.22758841,0.00017123,2]
[348973823,1736907036280,-203.76115492,0.00017257,2]
[348973824,1736907036289,-514.39702391,0.00017292,2]
[348973825,1736907036298,-500.0,0.00017292,2]
[348973826,1736907036307,-500.0,0.00017292,2]
[348973827,1736907036316,-643.6340411,0.00017292,2]
[348973828,1736907036325,-524.29005208,0.00017292,2]
[348973829,1736907036334,-500.0,0.00017292,2]
[348973830,1736907036343,-515.89683211,0.00017292,2]
[348973831,1736907036353,-538.94755342,0.00017292,2]
[348973832,1736907036362,-525.84820885,0.00017292,2]
[348973833,1736907036371,-500.0,0.00017292,2]
[348973834,1736907036380,-500.0,0.00017292,2]
[348973835,1736907036389,-588.87,0.00017292,2]
[348973836,1736907036398,-500.0,0.00017292,2]
[348973837,1736907036407,-500.0,0.00017292,2]
[348973838,1736907036417,-500.0,0.00017292,2]
[348973839,1736907036428,-879.7,0.00017292,2]
[348973840,1736907036438,-529.2662217,0.00017292,2]
[348973841,1736907036451,-515.27161439,0.00017292,2]
[348973842,1736907036460,-500.0,0.00017293,2]
[348973843,1736907036468,-500.0,0.00017293,2]
[348973844,1736907036478,-254.11863997,0.00017293,2]
[348973845,1736907036487,-500.0,0.00017293,2]
[348973846,1736907036497,-500.0,0.00017293,2]
[348973847,1736907036506,-173.732,0.00017293,2]
[348973848,1736907036515,-500.0,0.00017293,2]
[348973849,1736907036524,-504.18,0.00017293,2]
[348973850,1736907036534,-517.2229124,0.00017293,2]
[348973851,1736907036544,-516.57717465,0.00017293,2]
[348973852,1736907036554,-500.0,0.00017293,2]
[348973853,1736907036563,-500.0,0.00017293,2]
[348973854,1736907036573,-500.0,0.00017293,2]
[348973855,1736907036583,-500.0,0.00017293,2]
[348973856,1736907036593,-620.94642567,0.00017293,2]
[348973857,1736907036602,-500.0,0.00017293,2]
[348973858,1736907036611,-500.0,0.00017293,2]
[348973859,1736907036621,-500.0,0.00017293,2]
[348973860,1736907036630,-500.0,0.00017293,2]
[348973861,1736907036641,-55555.0,0.00017294,2]
[348973862,1736907036655,-268.4,0.00017393,2]
[348973863,1736907036664,-683.77,0.00017393,2]
[348973864,1736907036673,-500.0,0.00017393,2]
[348973865,1736907036684,-500.0,0.00017393,2]
[348973866,1736907036695,-507.3,0.00017393,2]
[348973867,1736907036704,-271.13988576,0.00017393,2]
[348973868,1736907036713,-426.91,0.00017393,2]
[348973869,1736907036723,-591.89,0.00017393,2]
[348973870,1736907036732,-500.0,0.00017393,2]
[348973871,1736907036741,-500.0,0.00017393,2]
[348973872,1736907036750,-662.59,0.00017393,2]
[348973873,1736907036761,-720.11,0.00017393,2]
[348973874,1736907036770,-578.97739766,0.00017393,2]
[348973875,1736907036779,-500.0,0.00017394,2]
[348973876,1736907036789,-500.0,0.00017394,2]
[348973877,1736907036798,-630.87,0.00017394,2]
[348973878,1736907036807,-500.0,0.00017394,2]
[348973879,1736907036817,-500.0,0.00017394,2]
[348973880,1736907036826,-2866.0,0.000174,2]
[348973881,1736907036836,-203.76115492,0.00017436,2]
[348973882,1736907036845,-500.0,0.00017566,2]
[348973883,1736907036854,-333.6,0.00017566,2]
[348973884,1736907036864,-500.0,0.00017566,2]
[348973885,1736907036873,-481.17,0.00017566,2]
[348973886,1736907036882,-588.87,0.00017566,2]
[348973887,1736907036892,-500.0,0.00017566,2]
[348973888,1736907036902,-500.0,0.00017566,2]
[348973889,1736907036912,-500.0,0.00017566,2]
[348973890,1736907036923,-879.7,0.00017566,2]
[348973891,1736907036932,-500.0,0.00017567,2]
[348973892,1736907036942,-500.0,0.00017567,2]
[348973893,1736907036954,-500.0,0.00017567,2]
[348973894,1736907036964,-500.0,0.00017567,2]
[348973895,1736907036973,-177.6178889,0.00017567,2]
[348973896,1736907036983,-190.25,0.00017567,2]
[348973897,1736907036993,-500.0,0.00017567,2]
[348973898,1736907037002,-500.0,0.00017567,2]
[348973899,1736907037011,-604.99216956,0.00017567,2]
[348973900,1736907037021,-500.0,0.00017567,2]
[348973901,1736907037030,-500.0,0.00017567,2]
[348973902,1736907037040,-429.96883981,0.00017614,2]
[348973903,1736907037049,-203.76115492,0.00017614,2]
[348973904,1736907037058,-268.4,0.00017667,2]
[348973905,1736907037067,-683.77,0.00017667,2]
[348973906,1736907037076,-500.0,0.00017667,2]
[348973907,1736907037085,-500.0,0.00017667,2]
[348973908,1736907037094,-500.0,0.00017667,2]
[348973909,1736907037103,-500.0,0.00017667,2]
[348973910,1736907037112,-662.59,0.00017667,2]
[348973911,1736907037123,-720.11,0.00017667,2]
[348973912,1736907037133,-500.0,0.00017668,2]
[348973913,1736907037142,-239.78695163,0.00017668,2]
[348973914,1736907037152,-630.87,0.00017668,2]
[348973915,1736907037162,-500.0,0.00017668,2]
[348973916,1736907037172,-500.0,0.00017668,2]
[348973917,1736907037182,-150.0,0.00017725,2]
[348973918,1736907037192,-150.0,0.00017728,2]
[348973919,1736907037203,-150.0,0.00017729,2]
[348973920,1736907037213,-150.0,0.0001773,2]
[348973921,1736907037223,-150.0,0.00017731,2]
[348973922,1736907037233,-150.0,0.00017731,2]
[348973923,1736907037242,-150.0,0.00017733,2]
[348973924,1736907037251,-150.0,0.00017735,2]
[348973925,1736907037261,-150.0,0.00017738,2]
[348973926,1736907037419,-150.0,0.00017741,2]
[348973927,1736907037429,-150.0,0.00017742,2]
[348973928,1736907037439,-150.0,0.00017743,2]
[348973929,1736907037452,-150.0,0.00017745,2]
[348973930,1736907037462,-150.0,0.00017746,2]
[348973931,1736907037472,-150.0,0.00017747,2]
[348973932,1736907037482,-150.0,0.0001775,2]
[348973933,1736907037491,-150.0,0.00017754,2]
[348973934,1736907037501,-150.0,0.00017757,2]
[348973935,1736907037510,-150.0,0.00017764,2]
[348973936,1736907037519,-150.0,0.00017764,2]
[348973937,1736907037529,-150.0,0.00017765,2]
[348973938,1736907037541,-150.0,0.00017765,2]
[348973939,1736907037552,-150.0,0.00017777,2]
[348973940,1736907037562,-150.0,0.00017778,2]
[348973941,1736907037572,-150.0,0.00017781,2]
[348973942,1736907037582,-150.0,0.00017782,2]
[348973943,1736907037591,-150.0,0.00017785,2]
[348973944,1736907037601,-203.76115492,0.00017793,2]
[348973945,1736907037612,-150.0,0.00017795,2]
[348973946,1736907037622,-150.0,0.00017797,2]
[348973947,1736907037632,-150.0,0.00017798,2]
[348973948,1736907037646,-150.0,0.00017803,2]
[348973949,1736907037655,-150.0,0.00017804,2]
[348973950,1736907037669,-990.21,0.00017806,2]
[348973951,1736907037679,-980.31,0.00017806,2]
[348973952,1736907037689,-980.31,0.00017806,2]
[348973953,1736907037702,-980.31,0.00017806,2]
[348973954,1736907037711,-980.31,0.00017806,2]
[348973955,1736907037721,-509.03,0.00017806,2]
[348973956,1736907037730,-150.0,0.00017806,2]
[348973957,1736907037739,-500.0,0.00017808,2]
[348973958,1736907037749,-1100.0,0.00017808,2]
[348973959,1736907037759,-300.73,0.00017812,2]
[348973960,1736907037768,-150.0,0.00017817,2]
[348973961,1736907037778,-150.0,0.00017821,2]
[348973962,1736907037787,-150.0,0.00017823,2]
[348973963,1736907037798,-150.0,0.00017825,2]
[348973964,1736907037808,-300.0,0.00017827,2]
[348973965,1736907037819,-150.0,0.00017828,2]
[348973966,1736907037830,-150.0,0.00017828,2]
[348973967,1736907037840,-150.0,0.00017828,2]
[348973968,1736907037850,-150.0,0.00017832,2]
[348973969,1736907037862,-150.0,0.00017839,2]
[348973970,1736907037872,-500.0,0.0001784,2]
[348973971,1736907037881,-500.0,0.0001784,2]
[348973972,1736907037890,-588.87,0.0001784,2]
[348973973,1736907037899,-500.0,0.0001784,2]
[348973974,1736907037910,-500.0,0.0001784,2]
[348973975,1736907037921,-879.7,0.0001784,2]
[348973976,1736907037930,-500.0,0.00017841,2]
[348973977,1736907037940,-500.0,0.00017841,2]
[348973978,1736907037951,-500.0,0.00017841,2]
[348973979,1736907037961,-500.0,0.00017841,2]
[348973980,1736907037970,-500.0,0.00017841,2]
[348973981,1736907037979,-464.66110077,0.00017841,2]
[348973982,1736907037989,-500.0,0.00017841,2]
[348973983,1736907037999,-150.0,0.00017842,2]
[348973984,1736907038009,-150.0,0.00017844,2]
[348973985,1736907038019,-150.0,0.00017844,2]
[348973986,1736907038029,-150.0,0.00017846,2]
[348973987,1736907038038,-150.0,0.00017846,2]
[348973988,1736907038048,-150.0,0.00017851,2]
[348973989,1736907038058,-150.0,0.00017853,2]
[348973990,1736907038069,-150.0,0.00017855,2]
[348973991,1736907038079,-150.0,0.00017861,2]
[348973992,1736907038088,-150.0,0.00017861,2]
[348973993,1736907038097,-150.0,0.00017867,2]
[348973994,1736907038108,-150.0,0.00017873,2]
[348973995,1736907038118,-150.0,0.00017874,2]
[348973996,1736907038127,-150.0,0.00017874,2]
[348973997,1736907038137,-150.0,0.00017886,2]
[348973998,1736907038147,-150.0,0.0001789,2]
[348973999,1736907038157,-150.0,0.00017892,2]
[348974000,1736907038167,-150.0,0.00017893,2]
[348974001,1736907038176,-150.0,0.00017897,2]
[348974002,1736907038186,-150.0,0.00017898,2]
[348974003,1736907038196,-1000.0,0.000179,2]
[348974004,1736907038205,-220.0,0.000179,2]
[348974005,1736907038214,-409.35546312,0.000179,2]
[348974006,1736907038224,-150.0,0.00017901,2]
[348974007,1736907038234,-150.0,0.00017901,2]
[348974008,1736907038244,-150.0,0.00017901,2]
[348974009,1736907038254,-150.0,0.00017902,2]
[348974010,1736907038264,-150.0,0.00017902,2]
[348974011,1736907038273,-200.0,0.00017904,2]
[348974012,1736907038284,-150.0,0.00017905,2]
[348974013,1736907038294,-150.0,0.00017906,2]
[348974014,1736907038303,-150.0,0.00017916,2]
[348974015,1736907038312,-150.0,0.0001792,2]
[348974016,1736907038322,-150.0,0.00017925,2]
[348974017,1736907038332,-150.0,0.00017927,2]
[348974018,1736907038341,-150.0,0.00017929,2]
[348974019,1736907038351,-150.0,0.00017931,2]
[348974020,1736907038360,-150.0,0.00017931,2]
[348974021,1736907038368,-150.0,0.00017932,2]
[348974022,1736907038377,-150.0,0.00017934,2]
[348974023,1736907038386,-150.0,0.00017935,2]
[348974024,1736907038396,-268.4,0.00017941,2]
[348974025,1736907038405,-150.0,0.00017941,2]
[348974026,1736907038414,-683.77,0.00017941,2]
[348974027,1736907038423,-500.0,0.00017941,2]
[348974028,1736907038433,-500.0,0.00017941,2]
[348974029,1736907038442,-219.9287659,0.00017941,2]
[348974030,1736907038455,-500.0,0.00017941,2]
[348974031,1736907038464,-662.59,0.00017941,2]
[348974032,1736907038473,-720.11,0.00017941,2]
[348974033,1736907038483,-500.0,0.00017942,2]
[348974034,1736907038492,-630.87,0.00017942,2]
[348974035,1736907038502,-500.0,0.00017942,2]
[348974036,1736907038511,-500.0,0.00017942,2]
[348974037,1736907038521,-150.0,0.00017947,2]
[348974038,1736907038530,-150.0,0.0001795,2]
[348974039,1736907038540,-500.0,0.00017951,2]
[348974040,1736907038551,-150.0,0.00017954,2]
[348974041,1736907038562,-150.0,0.00017958,2]
[348974043,1736907038571,-150.0,0.00017968,2]
[348974045,1736907038580,-150.0,0.00017968,2]
[348974046,1736907038590,-150.0,0.0001797,2]
[348974047,1736907038599,-150.0,0.00017971,2]
[348974048,1736907038609,-203.76115492,0.00017971,2]
[348974049,1736907038618,-150.0,0.00017976,2]
[348974050,1736907038627,-150.0,0.00017981,2]
[348974051,1736907038637,-150.0,0.00017984,2]
[348974052,1736907038650,-150.0,0.00017987,2]
[348974053,1736907038660,-150.0,0.00017989,2]
[348974054,1736907038669,-150.0,0.0001799,2]
[348974055,1736907038678,-150.0,0.00017991,2]
[348974056,1736907038688,-150.0,0.00017992,2]
[348974057,1736907038698,-150.0,0.00017996,2]
[348974058,1736907038708,-150.0,0.00017996,2]
[348974059,1736907038719,-150.0,0.00017998,2]
[348974060,1736907038729,-251.96794083,0.00017999,2]
[348974061,1736907038739,-150.0,0.00017999,2]
[348974062,1736907038749,-999.0,0.00017999,2]
[348974063,1736907038760,-500.0,0.00017999,2]
[348974064,1736907038770,-500.0,0.00017999,2]
[348974065,1736907038780,-500.0,0.00017999,2]
[348974066,1736907038791,-500.0,0.00017999,2]
[348974067,1736907038800,-500.0,0.00017999,2]
[348974068,1736907038810,-500.0,0.00017999,2]
[348974069,1736907038820,-500.0,0.00017999,2]
[348974070,1736907038829,-500.0,0.00017999,2]
[348974071,1736907038840,-500.0,0.00017999,2]
[348974072,1736907038850,-440.57467223,0.00017999,2]
[348974073,1736907038859,-333.87091663,0.00017999,2]
[348974074,1736907038871,-500.0,0.00017999,2]
[348974075,1736907038882,-500.0,0.00017999,2]
[348974076,1736907038892,-500.0,0.00017999,2]
[348974077,1736907038902,-501.05505135,0.00017999,2]
[348974078,1736907038913,-500.0,0.00017999,2]
[348974081,1736907038923,-500.0,0.00017999,2]
[348974083,1736907038932,-280.38808493,0.00017999,2]
[348974085,1736907038941,-500.0,0.00017999,2]
[348974087,1736907038952,-375.59218375,0.00017999,2]
[348974089,1736907038961,-547.88360937,0.00017999,2]
[348974091,1736907038970,-904336.95641472,0.00018,2]
[348974096,1736907041147,-511.92517816,0.00016845,2]
[348974097,1736907041158,-32.40209431,0.00017293,2]
[348974098,1736907041169,-566.51790569,0.00017293,2]
[348974100,1736907041179,-150.0,0.00017741,2]
[348974101,1736907041188,-150.0,0.00017752,2]
[348974102,1736907041200,-150.0,0.00017754,2]
[348974103,1736907041209,-150.0,0.00017763,2]
[348974104,1736907041217,-150.0,0.00017785,2]
[348974105,1736907041225,-150.0,0.00017786,2]
[348974106,1736907041234,-150.0,0.00017789,2]
[348974107,1736907041243,-150.0,0.00017793,2]
[348974108,1736907041252,-150.0,0.00017807,2]
[348974109,1736907041262,-150.0,0.00017813,2]
[348974110,1736907041270,-150.0,0.00017827,2]
[348974111,1736907041279,-150.0,0.00017837,2]
[348974112,1736907041288,-150.0,0.0001784,2]
[348974113,1736907041298,-150.0,0.00017858,2]
[348974114,1736907041307,-150.0,0.00017859,2]
[348974115,1736907041316,-150.0,0.00017861,2]
[348974116,1736907041325,-150.0,0.00017868,2]
[348974117,1736907041334,-150.0,0.00017872,2]
[348974118,1736907041342,-150.0,0.0001788,2]
[348974119,1736907041351,-150.0,0.00017902,2]
[348974120,1736907041359,-150.0,0.00017912,2]
[348974121,1736907041368,-150.0,0.00017924,2]
[348974122,1736907041377,-150.0,0.00017941,2]
[348974123,1736907041386,-150.0,0.00017942,2]
[348974124,1736907041395,-150.0,0.00017948,2]
[348974125,1736907041404,-150.0,0.00017963,2]
[348974126,1736907041413,-150.0,0.00017966,2]
[348974127,1736907041421,-150.0,0.00017966,2]
[348974128,1736907041428,-150.0,0.00017971,2]
[348974129,1736907041437,-150.0,0.00017983,2]
[348974130,1736907041447,-150.0,0.00017984,2]
[348974131,1736907041456,-150.0,0.00017999,2]
[348974132,1736907041465,-2811.88209431,0.00018,2]
[348974133,1736907041498,-150.0,0.00017738,2]
[348974134,1736907041509,-150.0,0.00017757,2]
[348974135,1736907041518,-150.0,0.00017855,2]
[348974136,1736907041528,-150.0,0.00017896,2]
[348974137,1736907041538,-150.0,0.00017938,2]
[348974138,1736907041549,-21545.2780672,0.00018,2]
[348974139,1736907041561,-637.103867,0.00018,2]
[348974140,1736907041574,-355.17091682,0.00018,2]
[348974141,1736907041587,-759.499977,0.00018,2]
[348974142,1736907041630,-150.0,0.0001781,2]